[Event "Kvibergspelen September 2019"]
[Site "Prioritet Serneke Arena, Krutvagen 2, Gothenburg, Sweden"]
[Date "2019.09.27"]
[Round "1.1"]
[White "Hillarp Persson, Tiger"]
[Black "Olsson, William"]
[Result "1-0"]
[TimeControl "15 minutes + 5 seconds per move from move one (Round 1 - 4) / 90 minutes + 30 seconds per move from move one (Round 5 - 8)"]
[WhiteTitle "GM"]
[WhiteFideId "1700812"]
[BlackFideId "1741721"]
[WhiteElo "2558"]
[BlackElo "1974"]

1. Nf3 {[%clk 00:15:05]} {[%emt 00:00:04]} d5 {[%clk 00:15:09]} {[%emt
00:00:02]} 2. g3 {[%clk 00:15:03]} {[%emt 00:00:07]} Nf6 {[%clk 00:15:11]}
{[%emt 00:00:03]} 3. Bg2 {[%clk 00:15:06]} {[%emt 00:00:02]} Bf5 {[%clk
00:15:13]} {[%emt 00:00:03]} 4. c4 {[%clk 00:15:03]} {[%emt 00:00:07]} c6
{[%clk 00:15:14]} {[%emt 00:00:05]} 5. Qb3 {[%clk 00:15:05]} {[%emt 00:00:03]}
Qb6 {[%clk 00:15:15]} {[%emt 00:00:04]} 6. d3 {[%clk 00:15:09]} {[%emt
00:00:01]} e6 {[%clk 00:15:12]} {[%emt 00:00:08]} 7. Be3 {[%clk 00:15:11]}
{[%emt 00:00:02]} Qxb3 {[%clk 00:15:02]} {[%emt 00:00:16]} 8. axb3 {[%clk
00:15:15]} {[%emt 00:00:02]} Bb4+ {[%clk 00:14:25]} {[%emt 00:00:41]} 9. Nc3
{[%clk 00:13:16]} {[%emt 00:02:03]} a6 {[%clk 00:11:33]} {[%emt 00:02:58]} 10.
Nh4 {[%clk 00:12:46]} {[%emt 00:00:34]} Bg4 {[%clk 00:11:14]} {[%emt 00:00:25]}
11. h3 {[%clk 00:12:46]} {[%emt 00:00:05]} Bh5 {[%clk 00:11:17]} {[%emt
00:00:02]} 12. g4 {[%clk 00:12:38]} {[%emt 00:00:12]} Bg6 {[%clk 00:11:21]}
{[%emt 00:00:02]} 13. O-O {[%clk 00:12:40]} {[%emt 00:00:03]} Nbd7 {[%clk
00:10:54]} {[%emt 00:00:32]} 14. Nxg6 {[%clk 00:12:08]} {[%emt 00:00:37]} hxg6
{[%clk 00:10:31]} {[%emt 00:00:27]} 15. Rfd1 {[%clk 00:11:35]} {[%emt
00:00:38]} Ke7 {[%clk 00:09:09]} {[%emt 00:01:28]} 16. d4 {[%clk 00:10:27]}
{[%emt 00:01:13]} Bd6 {[%clk 00:08:26]} {[%emt 00:00:47]} 17. Bg5 {[%clk
00:10:19]} {[%emt 00:00:13]} Rhe8 {[%clk 00:06:32]} {[%emt 00:02:00]} 18. e4
{[%clk 00:09:42]} {[%emt 00:00:41]} dxe4 {[%clk 00:06:35]} {[%emt 00:00:03]} 19.
Nxe4 {[%clk 00:09:46]} {[%emt 00:00:01]} Bc7 {[%clk 00:06:39]} {[%emt
00:00:02]} 20. d5 {[%clk 00:08:12]} {[%emt 00:01:38]} exd5 {[%clk 00:04:58]}
{[%emt 00:01:46]} 21. cxd5 {[%clk 00:08:14]} {[%emt 00:00:03]} cxd5 {[%clk
00:05:01]} {[%emt 00:00:02]} 22. Nc3 {[%clk 00:07:52]} {[%emt 00:00:26]} Kf8
{[%clk 00:03:57]} {[%emt 00:01:10]} 23. Nxd5 {[%clk 00:07:54]} {[%emt
00:00:03]} Be5 {[%clk 00:03:26]} {[%emt 00:00:36]} 24. Rac1 {[%clk 00:04:15]}
{[%emt 00:03:43]} Rab8 {[%clk 00:02:44]} {[%emt 00:00:48]} 25. Rc2 {[%clk
00:03:58]} {[%emt 00:00:21]} Nxd5 {[%clk 00:02:25]} {[%emt 00:00:25]} 26. Rxd5
{[%clk 00:03:16]} {[%emt 00:00:48]} Nf6 {[%clk 00:02:28]} {[%emt 00:00:01]} 27.
Rd1 {[%clk 00:03:15]} {[%emt 00:00:05]} b5 {[%clk 00:02:16]} {[%emt 00:00:17]}
28. Be3 {[%clk 00:03:08]} {[%emt 00:00:12]} Red8 {[%clk 00:02:13]} {[%emt
00:00:09]} 29. Rcd2 {[%clk 00:02:25]} {[%emt 00:00:47]} Rxd2 {[%clk 00:02:17]}
{[%emt 00:00:03]} 30. Rxd2 {[%clk 00:02:29]} Kg8 {[%clk 00:02:07]} {[%emt
00:00:14]} 31. b4 {[%clk 00:02:17]} {[%emt 00:00:17]} Rc8 {[%clk 00:01:48]}
{[%emt 00:00:24]} 32. Bb7 {[%clk 00:01:58]} {[%emt 00:00:24]} Rc1+ {[%clk
00:01:51]} {[%emt 00:00:01]} 33. Kg2 {[%clk 00:02:02]} {[%emt 00:00:01]} Ra1
{[%clk 00:01:55]} {[%emt 00:00:02]} 34. Rd8+ {[%clk 00:01:20]} {[%emt
00:00:46]} Kh7 {[%clk 00:01:56]} {[%emt 00:00:04]} 35. Rf8 {[%clk 00:01:06]}
{[%emt 00:00:20]} Bxb2 {[%clk 00:01:59]} {[%emt 00:00:02]} 36. Rxf7 {[%clk
00:01:09]} {[%emt 00:00:02]} Bc3 {[%clk 00:01:56]} {[%emt 00:00:08]} 37. Bc5
{[%clk 00:01:02]} {[%emt 00:00:11]} Ng8 {[%clk 00:01:43]} {[%emt 00:00:19]} 38.
g5 {[%clk 00:00:52]} {[%emt 00:00:15]} a5 {[%clk 00:01:36]} {[%emt 00:00:13]}
39. Rf4 {[%clk 00:00:28]} {[%emt 00:00:27]} a4 {[%clk 00:01:33]} {[%emt
00:00:08]} 40. Bd5 {[%clk 00:00:25]} {[%emt 00:00:09]} a3 {[%clk 00:01:20]}
{[%emt 00:00:18]} 41. Rf8 {[%clk 00:00:27]} {[%emt 00:00:03]} Nh6 {[%clk
00:00:43]} {[%emt 00:00:43]} 42. gxh6 {[%clk 00:00:28]} {[%emt 00:00:03]} gxh6
{[%clk 00:00:46]} {[%emt 00:00:02]} 43. Rf7+ {[%clk 00:00:30]} {[%emt
00:00:03]} Kh8 {[%clk 00:00:48]} {[%emt 00:00:02]} 44. Ra7 {[%clk 00:00:34]}
{[%emt 00:00:02]} Bb2 {[%clk 00:00:40]} {[%emt 00:00:13]} 45. Bf8 {[%clk
00:00:15]} {[%emt 00:00:24]} h5 {[%clk 00:00:28]} {[%emt 00:00:18]} 46. Ra8
{[%clk 00:00:16]} {[%emt 00:00:05]} Kh7 {[%clk 00:00:30]} {[%emt 00:00:02]} 47.
Ra7+ {[%clk 00:00:16]} {[%emt 00:00:04]} Kh8 {[%clk 00:00:34]} {[%emt
00:00:02]} 48. Bc5 {[%clk 00:00:18]} {[%emt 00:00:02]} Rd1 {[%clk 00:00:35]}
{[%emt 00:00:04]} 49. Bf7 {[%clk 00:00:19]} {[%emt 00:00:05]} Rd2 {[%clk
00:00:18]} {[%emt 00:00:22]} 50. Bxg6 {[%clk 00:00:21]} {[%emt 00:00:03]} Bd4
{[%clk 00:00:11]} {[%emt 00:00:11]} 51. Bxd4+ {[%clk 00:00:23]} {[%emt
00:00:03]} Rxd4 {[%clk 00:00:15]} 52. Rxa3 {[%clk 00:00:26]} {[%emt 00:00:02]}
Rxb4 {[%clk 00:00:17]} {[%emt 00:00:03]} 53. Bxh5 {[%clk 00:00:29]} {[%emt
00:00:02]} Kg7 {[%clk 00:00:19]} {[%emt 00:00:02]} 54. Bf3 {[%clk 00:00:28]}
{[%emt 00:00:07]} Rb2 {[%clk 00:00:23]} {[%emt 00:00:02]} 55. Bd5 {[%clk
00:00:31]} {[%emt 00:00:02]} b4 {[%clk 00:00:27]} {[%emt 00:00:02]} 56. Rb3
{[%clk 00:00:35]} 1-0

[Event "Kvibergspelen September 2019"]
[Site "Prioritet Serneke Arena, Krutvagen 2, Gothenburg, Sweden"]
[Date "2019.09.27"]
[Round "1.2"]
[White "Moller, Mikael"]
[Black "Blomqvist, Erik"]
[Result "0-1"]
[TimeControl "15 minutes + 5 seconds per move from move one (Round 1 - 4) / 90 minutes + 30 seconds per move from move one (Round 5 - 8)"]
[BlackTitle "GM"]
[WhiteFideId "1738461"]
[BlackFideId "1709437"]
[WhiteElo "1973"]
[BlackElo "2519"]

1. g3 {[%clk 00:15:09]} {[%emt 03:31:57]} c5 {[%clk 00:14:46]} {[%emt
00:00:24]} 2. Bg2 {[%clk 00:15:12]} {[%emt 00:00:02]} g6 {[%clk 00:14:49]}
{[%emt 00:00:02]} 3. c4 {[%clk 00:15:14]} {[%emt 00:00:03]} Bg7 {[%clk
00:14:53]} {[%emt 00:00:02]} 4. Nc3 {[%clk 00:15:17]} {[%emt 00:00:02]} Nc6
{[%clk 00:14:53]} {[%emt 00:00:05]} 5. d3 {[%clk 00:15:20]} {[%emt 00:00:02]}
d6 {[%clk 00:14:50]} {[%emt 00:00:08]} 6. Bd2 {[%clk 00:15:22]} {[%emt
00:00:02]} Qd7 {[%clk 00:14:24]} {[%emt 00:00:31]} 7. a3 {[%clk 00:15:23]}
{[%emt 00:00:04]} b6 {[%clk 00:14:27]} {[%emt 00:00:03]} 8. b4 {[%clk
00:15:15]} {[%emt 00:00:13]} Bb7 {[%clk 00:14:30]} {[%emt 00:00:02]} 9. b5
{[%clk 00:14:51]} {[%emt 00:00:28]} Nd4 {[%clk 00:14:30]} {[%emt 00:00:05]} 10.
Nf3 {[%clk 00:14:45]} {[%emt 00:00:12]} Nxf3+ {[%clk 00:14:25]} {[%emt
00:00:10]} 11. exf3 {[%clk 00:14:47]} {[%emt 00:00:02]} Nh6 {[%clk 00:14:03]}
{[%emt 00:00:27]} 12. O-O {[%clk 00:14:35]} {[%emt 00:00:17]} Nf5 {[%clk
00:14:05]} {[%emt 00:00:04]} 13. a4 {[%clk 00:14:18]} {[%emt 00:00:22]} a5
{[%clk 00:13:12]} {[%emt 00:00:58]} 14. Ra2 {[%clk 00:13:41]} {[%emt 00:00:42]}
h5 {[%clk 00:12:33]} {[%emt 00:00:44]} 15. h4 {[%clk 00:13:31]} {[%emt
00:00:14]} O-O-O {[%clk 00:12:33]} {[%emt 00:00:05]} 16. Re1 {[%clk 00:13:05]}
{[%emt 00:00:31]} e6 {[%clk 00:12:14]} {[%emt 00:00:25]} 17. f4 {[%clk
00:10:44]} {[%emt 00:02:25]} Nd4 {[%clk 00:11:45]} {[%emt 00:00:34]} 18. Ne4
{[%clk 00:09:36]} {[%emt 00:01:13]} d5 {[%clk 00:10:15]} {[%emt 00:01:35]} 19.
cxd5 {[%clk 00:09:37]} {[%emt 00:00:04]} Qxd5 {[%clk 00:09:58]} {[%emt
00:00:22]} 0-1

[Event "Kvibergspelen September 2019"]
[Site "Prioritet Serneke Arena, Krutvagen 2, Gothenburg, Sweden"]
[Date "2019.09.27"]
[Round "1.3"]
[White "Schandorff, Lars"]
[Black "Wallenas, Joakim"]
[Result "1-0"]
[TimeControl "15 minutes + 5 seconds per move from move one (Round 1 - 4) / 90 minutes + 30 seconds per move from move one (Round 5 - 8)"]
[WhiteTitle "GM"]
[WhiteFideId "1400070"]
[BlackFideId "1728458"]
[WhiteElo "2496"]
[BlackElo "1966"]

1. d4 {[%clk 00:15:07]} {[%emt 00:00:02]} Nf6 {[%clk 00:15:09]} {[%emt
00:00:02]} 2. Nf3 {[%clk 00:15:10]} {[%emt 00:00:02]} e6 {[%clk 00:15:09]}
{[%emt 00:00:04]} 3. g3 {[%clk 00:15:12]} {[%emt 00:00:03]} c5 {[%clk
00:15:11]} {[%emt 00:00:03]} 4. Bg2 {[%clk 00:15:14]} {[%emt 00:00:03]} Nc6
{[%clk 00:15:04]} {[%emt 00:00:12]} 5. O-O {[%clk 00:15:14]} {[%emt 00:00:06]}
d5 {[%clk 00:14:58]} {[%emt 00:00:11]} 6. c4 {[%clk 00:15:00]} {[%emt
00:00:19]} dxc4 {[%clk 00:14:17]} {[%emt 00:00:46]} 7. dxc5 {[%clk 00:14:35]}
{[%emt 00:00:30]} Qxd1 {[%clk 00:14:16]} {[%emt 00:00:06]} 8. Rxd1 {[%clk
00:14:38]} {[%emt 00:00:02]} Bxc5 {[%clk 00:14:15]} {[%emt 00:00:06]} 9. Nbd2
{[%clk 00:14:36]} {[%emt 00:00:07]} c3 {[%clk 00:13:52]} {[%emt 00:00:28]} 10.
bxc3 {[%clk 00:14:38]} {[%emt 00:00:02]} O-O {[%clk 00:13:52]} {[%emt
00:00:05]} 11. Nb3 {[%clk 00:14:37]} {[%emt 00:00:06]} Bb6 {[%clk 00:13:52]}
{[%emt 00:00:05]} 12. Nfd4 {[%clk 00:13:32]} {[%emt 00:01:10]} Bd7 {[%clk
00:13:35]} {[%emt 00:00:22]} 13. a4 {[%clk 00:12:24]} {[%emt 00:01:12]} Na5
{[%clk 00:11:27]} {[%emt 00:02:13]} 14. Nxa5 {[%clk 00:09:39]} {[%emt
00:02:50]} Bxa5 {[%clk 00:11:29]} {[%emt 00:00:03]} 15. Bb2 {[%clk 00:09:43]}
{[%emt 00:00:02]} Rac8 {[%clk 00:11:06]} {[%emt 00:00:28]} 16. Nb5 {[%clk
00:08:05]} {[%emt 00:01:43]} a6 {[%clk 00:08:49]} {[%emt 00:02:22]} 17. Nd6
{[%clk 00:08:04]} {[%emt 00:00:06]} Rc7 {[%clk 00:08:45]} {[%emt 00:00:09]} 18.
c4 {[%clk 00:07:32]} {[%emt 00:00:37]} Bc6 {[%clk 00:08:27]} {[%emt 00:00:21]}
19. Bxc6 {[%clk 00:07:27]} {[%emt 00:00:11]} bxc6 {[%clk 00:08:02]} {[%emt
00:00:30]} 20. Bxf6 {[%clk 00:05:39]} {[%emt 00:01:53]} gxf6 {[%clk 00:08:03]}
{[%emt 00:00:03]} 21. Ne4 {[%clk 00:05:29]} {[%emt 00:00:16]} Kg7 {[%clk
00:07:29]} {[%emt 00:00:38]} 22. Nc5 {[%clk 00:05:30]} {[%emt 00:00:05]} Ra8
{[%clk 00:06:42]} {[%emt 00:00:51]} 23. Rab1 {[%clk 00:05:31]} {[%emt
00:00:04]} f5 {[%clk 00:06:09]} {[%emt 00:00:38]} 24. Rb3 {[%clk 00:05:12]}
{[%emt 00:00:24]} Kf6 {[%clk 00:05:51]} {[%emt 00:00:23]} 25. Kg2 {[%clk
00:04:27]} {[%emt 00:00:50]} Ke7 {[%clk 00:05:31]} {[%emt 00:00:25]} 26. Rd4
{[%clk 00:04:13]} {[%emt 00:00:19]} Raa7 {[%clk 00:04:37]} {[%emt 00:00:59]} 27.
Rdd3 {[%clk 00:04:05]} {[%emt 00:00:13]} Rc8 {[%clk 00:04:20]} {[%emt
00:00:22]} 28. e4 {[%clk 00:03:42]} {[%emt 00:00:29]} fxe4 {[%clk 00:04:16]}
{[%emt 00:00:09]} 29. Nxe4 {[%clk 00:03:46]} c5 {[%clk 00:03:56]} {[%emt
00:00:25]} 30. Rb1 {[%clk 00:03:39]} {[%emt 00:00:12]} Rd8 {[%clk 00:03:55]}
{[%emt 00:00:06]} 31. Rxd8 {[%clk 00:03:40]} {[%emt 00:00:04]} Bxd8 {[%clk
00:03:51]} {[%emt 00:00:09]} 32. Nxc5 {[%clk 00:03:14]} {[%emt 00:00:31]} Rc7
{[%clk 00:03:14]} {[%emt 00:00:41]} 33. Nxa6 {[%clk 00:03:09]} {[%emt
00:00:11]} Rxc4 {[%clk 00:03:16]} {[%emt 00:00:02]} 34. Rb4 {[%clk 00:03:13]}
{[%emt 00:00:03]} Rxb4 {[%clk 00:03:11]} {[%emt 00:00:09]} 35. Nxb4 {[%clk
00:03:17]} {[%emt 00:00:01]} Kd6 {[%clk 00:03:05]} {[%emt 00:00:11]} 36. Nd3
{[%clk 00:03:18]} {[%emt 00:00:04]} Kd5 {[%clk 00:02:49]} {[%emt 00:00:22]} 37.
Kf3 {[%clk 00:03:19]} {[%emt 00:00:03]} e5 {[%clk 00:02:26]} {[%emt 00:00:28]}
38. Ke2 {[%clk 00:03:14]} {[%emt 00:00:10]} f5 {[%clk 00:02:18]} {[%emt
00:00:13]} 39. f4 {[%clk 00:03:06]} {[%emt 00:00:14]} e4 {[%clk 00:02:15]}
{[%emt 00:00:07]} 40. Ne5 {[%clk 00:03:09]} {[%emt 00:00:02]} Bc7 {[%clk
00:01:45]} {[%emt 00:00:36]} 41. Nf7 {[%clk 00:03:08]} {[%emt 00:00:06]} Ke6
{[%clk 00:01:17]} {[%emt 00:00:33]} 42. Ng5+ {[%clk 00:03:11]} {[%emt
00:00:02]} Kd5 {[%clk 00:01:04]} {[%emt 00:00:19]} 43. Nxh7 {[%clk 00:03:14]}
{[%emt 00:00:02]} Bb6 {[%clk 00:00:56]} {[%emt 00:00:13]} 44. Ng5 {[%clk
00:03:15]} {[%emt 00:00:03]} Bg1 {[%clk 00:00:52]} {[%emt 00:00:09]} 45. h4
{[%clk 00:02:51]} {[%emt 00:00:29]} Bh2 {[%clk 00:00:19]} {[%emt 00:00:38]} 46.
Kf2 {[%clk 00:02:47]} {[%emt 00:00:10]} e3+ {[%clk 00:00:22]} {[%emt 00:00:03]}
47. Kxe3 {[%clk 00:02:42]} {[%emt 00:00:10]} Bxg3 {[%clk 00:00:24]} {[%emt
00:00:02]} 48. h5 {[%clk 00:02:41]} {[%emt 00:00:06]} Bh2 {[%clk 00:00:22]}
{[%emt 00:00:07]} 49. Nf3 {[%clk 00:02:37]} {[%emt 00:00:09]} Bg3 {[%clk
00:00:06]} {[%emt 00:00:21]} 50. h6 {[%clk 00:02:38]} {[%emt 00:00:04]} 1-0

[Event "Kvibergspelen September 2019"]
[Site "Prioritet Serneke Arena, Krutvagen 2, Gothenburg, Sweden"]
[Date "2019.09.27"]
[Round "1.4"]
[White "Wiklund, Johan"]
[Black "Cramling, Pia"]
[Result "0-1"]
[TimeControl "15 minutes + 5 seconds per move from move one (Round 1 - 4) / 90 minutes + 30 seconds per move from move one (Round 5 - 8)"]
[BlackTitle "GM"]
[WhiteFideId "1713817"]
[BlackFideId "1700030"]
[WhiteElo "1960"]
[BlackElo "2487"]

1. Nf3 {[%clk 00:15:07]} {[%emt 00:00:03]} c5 {[%clk 00:14:59]} {[%emt
00:00:09]} 2. c4 {[%clk 00:15:10]} {[%emt 00:00:02]} Nc6 {[%clk 00:15:02]}
{[%emt 00:00:03]} 3. d4 {[%clk 00:15:13]} {[%emt 00:00:02]} cxd4 {[%clk
00:15:06]} {[%emt 00:00:02]} 4. Nxd4 {[%clk 00:15:17]} {[%emt 00:00:01]} e5
{[%clk 00:15:08]} {[%emt 00:00:02]} 5. Nc2 {[%clk 00:15:12]} {[%emt 00:00:10]}
Bc5 {[%clk 00:14:56]} {[%emt 00:00:17]} 6. Nc3 {[%clk 00:15:04]} {[%emt
00:00:13]} Nf6 {[%clk 00:14:58]} {[%emt 00:00:02]} 7. Be3 {[%clk 00:15:05]}
{[%emt 00:00:05]} Bxe3 {[%clk 00:14:44]} {[%emt 00:00:19]} 8. Nxe3 {[%clk
00:15:08]} {[%emt 00:00:02]} d6 {[%clk 00:14:41]} {[%emt 00:00:08]} 9. g3
{[%clk 00:15:06]} {[%emt 00:00:07]} O-O {[%clk 00:14:31]} {[%emt 00:00:15]} 10.
Bg2 {[%clk 00:15:09]} {[%emt 00:00:01]} Be6 {[%clk 00:14:28]} {[%emt 00:00:09]}
11. O-O {[%clk 00:15:01]} {[%emt 00:00:13]} Rc8 {[%clk 00:14:30]} {[%emt
00:00:02]} 12. Ned5 {[%clk 00:13:46]} {[%emt 00:01:20]} Bxd5 {[%clk 00:12:46]}
{[%emt 00:01:49]} 13. Nxd5 {[%clk 00:13:41]} {[%emt 00:00:11]} a6 {[%clk
00:12:39]} {[%emt 00:00:11]} 14. Rc1 {[%clk 00:13:39]} {[%emt 00:00:07]} Nxd5
{[%clk 00:12:00]} {[%emt 00:00:44]} 15. Bxd5 {[%clk 00:12:49]} {[%emt
00:00:55]} Qb6 {[%clk 00:12:02]} {[%emt 00:00:02]} 16. Qd2 {[%clk 00:12:29]}
{[%emt 00:00:26]} Nb4 {[%clk 00:11:21]} {[%emt 00:00:45]} 17. b3 {[%clk
00:12:02]} {[%emt 00:00:32]} Nxd5 {[%clk 00:11:07]} {[%emt 00:00:20]} 18. Qxd5
{[%clk 00:12:04]} {[%emt 00:00:04]} Rc5 {[%clk 00:11:03]} {[%emt 00:00:09]} 19.
Qd2 {[%clk 00:12:06]} {[%emt 00:00:03]} Rfc8 {[%clk 00:10:43]} {[%emt
00:00:25]} 20. Rfd1 {[%clk 00:12:04]} {[%emt 00:00:07]} R8c6 {[%clk 00:10:24]}
{[%emt 00:00:23]} 21. e4 {[%clk 00:10:34]} {[%emt 00:01:35]} Kf8 {[%clk
00:08:10]} {[%emt 00:02:19]} 22. Qg5 {[%clk 00:10:15]} {[%emt 00:00:24]} Qc7
{[%clk 00:07:29]} {[%emt 00:00:45]} 23. f4 {[%clk 00:05:52]} {[%emt 00:04:29]}
exf4 {[%clk 00:06:17]} {[%emt 00:01:16]} 24. Qxf4 {[%clk 00:05:54]} {[%emt
00:00:04]} b5 {[%clk 00:06:01]} {[%emt 00:00:21]} 25. Rd4 {[%clk 00:05:12]}
{[%emt 00:00:47]} Qe7 {[%clk 00:05:26]} {[%emt 00:00:39]} 26. Rcd1 {[%clk
00:04:47]} {[%emt 00:00:32]} bxc4 {[%clk 00:05:05]} {[%emt 00:00:26]} 27. Rxd6
{[%clk 00:03:30]} {[%emt 00:01:22]} Rxd6 {[%clk 00:05:00]} {[%emt 00:00:09]} 28.
Qxd6 {[%clk 00:02:25]} {[%emt 00:01:11]} Qxd6 {[%clk 00:04:50]} {[%emt
00:00:15]} 29. Rxd6 {[%clk 00:02:28]} {[%emt 00:00:02]} Ke7 {[%clk 00:03:22]}
{[%emt 00:01:32]} 30. Rd2 {[%clk 00:01:51]} {[%emt 00:00:42]} Ke6 {[%clk
00:03:21]} {[%emt 00:00:06]} 31. Rc2 {[%clk 00:01:28]} {[%emt 00:00:28]} Ke5
{[%clk 00:03:22]} {[%emt 00:00:03]} 32. bxc4 {[%clk 00:00:10]} {[%emt
00:01:24]} a5 {[%clk 00:01:33]} {[%emt 00:01:54]} 33. Kg2 {[%clk 00:00:14]}
Kxe4 {[%clk 00:01:36]} {[%emt 00:00:02]} 34. Kh3 {[%clk 00:00:16]} {[%emt
00:00:02]} Kd4 {[%clk 00:01:18]} {[%emt 00:00:21]} 35. g4 {[%clk 00:00:09]}
{[%emt 00:00:14]} Rxc4 {[%clk 00:01:07]} {[%emt 00:00:16]} 36. Rd2+ {[%clk
00:00:14]} {[%emt 00:00:01]} Ke5 {[%clk 00:00:47]} {[%emt 00:00:22]} 37. Rd7
{[%clk 00:00:18]} {[%emt 00:00:04]} Ke6 {[%clk 00:00:51]} 38. Ra7 {[%clk
00:00:21]} {[%emt 00:00:02]} Ra4 {[%clk 00:00:54]} {[%emt 00:00:01]} 39. Ra6+
{[%clk 00:00:25]} {[%emt 00:00:02]} Ke5 {[%clk 00:00:55]} {[%emt 00:00:03]} 40.
Ra7 {[%clk 00:00:29]} {[%emt 00:00:03]} Kf6 {[%clk 00:00:57]} {[%emt 00:00:02]}
41. Ra6+ {[%clk 00:00:29]} {[%emt 00:00:05]} Kg5 {[%clk 00:01:01]} 42. Ra7
{[%clk 00:00:23]} {[%emt 00:00:11]} Ra3+ {[%clk 00:01:03]} {[%emt 00:00:03]} 43.
Kg2 {[%clk 00:00:25]} {[%emt 00:00:03]} Rxa2+ {[%clk 00:01:07]} {[%emt
00:00:02]} 44. Kf3 {[%clk 00:00:29]} {[%emt 00:00:01]} Ra3+ {[%clk 00:01:09]}
{[%emt 00:00:02]} 45. Ke4 {[%clk 00:00:14]} {[%emt 00:00:20]} Kg6 {[%clk
00:01:12]} {[%emt 00:00:02]} 46. h4 {[%clk 00:00:12]} {[%emt 00:00:08]} Ra4+
{[%clk 00:01:08]} {[%emt 00:00:09]} 47. Kf3 {[%clk 00:00:15]} {[%emt 00:00:02]}
f6 {[%clk 00:01:08]} {[%emt 00:00:04]} 0-1

[Event "Kvibergspelen September 2019"]
[Site "Prioritet Serneke Arena, Krutvagen 2, Gothenburg, Sweden"]
[Date "2019.09.27"]
[Round "1.6"]
[White "Stenman, Christoffer"]
[Black "Hector, Jonny"]
[Result "0-1"]
[TimeControl "15 minutes + 5 seconds per move from move one (Round 1 - 4) / 90 minutes + 30 seconds per move from move one (Round 5 - 8)"]
[BlackTitle "GM"]
[WhiteFideId "1713604"]
[BlackFideId "1700090"]
[WhiteElo "1943"]
[BlackElo "2477"]

1. e4 {[%clk 00:15:07]} {[%emt 00:00:04]} e5 {[%clk 00:15:08]} 2. Nf3 {[%clk
00:15:10]} {[%emt 00:00:03]} Nc6 {[%clk 00:15:11]} {[%emt 00:00:02]} 3. Bc4
{[%clk 00:15:10]} {[%emt 00:00:04]} Nf6 {[%clk 00:15:12]} {[%emt 00:00:03]} 4.
d4 {[%clk 00:15:08]} {[%emt 00:00:08]} exd4 {[%clk 00:15:12]} {[%emt 00:00:05]}
5. O-O {[%clk 00:15:05]} {[%emt 00:00:08]} Nxe4 {[%clk 00:15:11]} {[%emt
00:00:05]} 6. Re1 {[%clk 00:15:07]} {[%emt 00:00:04]} d5 {[%clk 00:15:14]}
{[%emt 00:00:02]} 7. Bxd5 {[%clk 00:15:08]} {[%emt 00:00:04]} Qxd5 {[%clk
00:15:15]} {[%emt 00:00:03]} 8. Nc3 {[%clk 00:15:11]} {[%emt 00:00:03]} Qd7
{[%clk 00:14:14]} {[%emt 00:01:05]} 9. Nxe4 {[%clk 00:14:54]} {[%emt 00:00:23]}
Be7 {[%clk 00:14:15]} {[%emt 00:00:04]} 10. Bg5 {[%clk 00:12:48]} {[%emt
00:02:12]} O-O {[%clk 00:14:14]} {[%emt 00:00:05]} 11. Bxe7 {[%clk 00:12:23]}
{[%emt 00:00:30]} Qxe7 {[%clk 00:14:16]} {[%emt 00:00:02]} 12. Nxd4 {[%clk
00:11:39]} {[%emt 00:00:50]} Bd7 {[%clk 00:14:18]} {[%emt 00:00:03]} 13. Nb5
{[%clk 00:10:23]} {[%emt 00:01:22]} Be6 {[%clk 00:13:46]} {[%emt 00:00:36]} 14.
Qh5 {[%clk 00:09:22]} {[%emt 00:01:06]} h6 {[%clk 00:12:05]} {[%emt 00:01:44]}
15. Re3 {[%clk 00:07:32]} {[%emt 00:01:57]} a6 {[%clk 00:11:21]} {[%emt
00:00:49]} 16. Nbc3 {[%clk 00:06:52]} {[%emt 00:00:45]} Nd4 {[%clk 00:11:09]}
{[%emt 00:00:17]} 17. Rg3 {[%clk 00:05:25]} {[%emt 00:01:31]} f5 {[%clk
00:10:46]} {[%emt 00:00:28]} 18. Nd2 {[%clk 00:04:08]} {[%emt 00:01:23]} Rad8
{[%clk 00:08:45]} {[%emt 00:02:06]} 19. Nb3 {[%clk 00:02:43]} {[%emt 00:01:31]}
Nxc2 {[%clk 00:07:29]} {[%emt 00:01:21]} 20. Rc1 {[%clk 00:02:44]} {[%emt
00:00:04]} f4 {[%clk 00:06:52]} {[%emt 00:00:41]} 21. Rf3 {[%clk 00:01:36]}
{[%emt 00:01:13]} Bxb3 {[%clk 00:06:43]} {[%emt 00:00:14]} 22. axb3 {[%clk
00:01:37]} {[%emt 00:00:05]} Nd4 {[%clk 00:06:33]} {[%emt 00:00:14]} 23. Rh3
{[%clk 00:00:56]} {[%emt 00:00:46]} f3 {[%clk 00:06:13]} {[%emt 00:00:25]} 24.
gxf3 {[%clk 00:00:18]} {[%emt 00:00:44]} Rf5 {[%clk 00:05:59]} {[%emt
00:00:19]} 25. Qh4 {[%clk 00:00:13]} {[%emt 00:00:10]} Nxf3+ {[%clk 00:05:55]}
{[%emt 00:00:09]} 0-1